{"text_format":"1","workbook":"xlsx","n_sheets":4,"sheets":["【使い方】","配賦ルール","作成元データ","配賦仕訳"],"not_rendered":{"charts":0,"images":0,"macros":1,"external_links":0,"defined_names":0,"comments":2,"pivot_tables":0},"unopened":[],"bounds":{"document_bytes":16777216,"sheet_cells":100000,"rows_first":2000,"rows_last":500,"rows_between":2000,"halvings":0,"cell_chars":16384,"cell_head_chars":4096},"cells_cut":0,"cells_raw":0,"read":"whole","date_system":"1900"}

{"sheet":"【使い方】","index":0,"n_rows":16,"n_cols":2,"rows_kept":16,"cut":false,"hidden":false,"merged":[]}
[]
[null,"このファイルを用いて、freeeへ仕訳インポートできる配賦データを簡単に作成いただけます。"]
[]
[null,"■ 利用の流れ"]
[null,"※ ファイルを開いた際に、マクロを有効にしてください。"]
[null,"1. 「配賦ルール」シートに配賦のルールを入力します。"]
[null,"　 配賦比率の合計が100になるように入力します。"]
[null,"2. 「作成元データ」シートのB列以降にfreeeから出力（または別途作成）した仕訳を貼り付けます。"]
[null,"　 A列には適用するルール名称を記入します。このルール名称は、「配賦ルール」シートの名称と整合させます。"]
[null,"　 記入が完了したら、「配賦仕訳作成」ボタンをクリックします。"]
[null,"3. 配賦仕訳が「配賦仕訳」シートに表示されるので、「CSVファイル出力」ボタンをクリックして出力します。"]
[null,"　 出力された仕訳ファイルは、会計freeeの「振替伝票」画面より、その他会計ソフトの仕訳としてインポートできます。"]
[]
[null,"■ 注意点"]
[null,"※ 按分計算時の端数は小数点第1位で四捨五入します。"]
[null,"　 四捨五入で端数が出る場合は、上に記載された配布先から順番に調整が入ります。"]

{"sheet":"配賦ルール","index":1,"n_rows":110,"n_cols":8,"rows_kept":110,"cut":false,"hidden":false,"merged":[]}
[]
[null,null,null,null,"※ 行を追加する際はこちらのボタンから行ってください"]
[]
[]
["検索キー",null,"ルール名称","配賦対象","配賦元","配賦先","配賦比率\n（％）","配賦比率\n合計Check"]
[{"$f":"C6&COUNTIF($C$1:C6,C6)","v":"雑貨事業本部共通費1"},"例","雑貨事業本部共通費","部門","雑貨事業本部","雑貨事業部",42.3,{"$f":"IF(OR(SUMIF(C:C,C6,G:G)=100,SUMIF(C:C,C6,G:G)=0),\"OK\",\"NG\")","v":"OK"}]
[{"$f":"C7&COUNTIF($C$1:C7,C7)","v":"雑貨事業本部共通費2"},"例","雑貨事業本部共通費","部門","雑貨事業本部","モバイルアクセサリ事業部",57.7,"OK"]
[{"$f":"C8&COUNTIF($C$1:C8,C8)","v":"オーディオ部門共通費1"},"例","オーディオ部門共通費","部門","オーディオ部門","イヤフォン",65,"OK"]
[{"$f":"C9&COUNTIF($C$1:C9,C9)","v":"オーディオ部門共通費2"},"例","オーディオ部門共通費","部門","オーディオ部門","ヘッドフォン",35,"OK"]
[{"$f":"C10&COUNTIF($C$1:C10,C10)","v":"0"},null,null,null,null,null,null,"OK"]
[{"$f":"C11&COUNTIF($C$1:C11,C11)","v":"0"},null,null,null,null,null,null,"OK"]
[{"$f":"C12&COUNTIF($C$1:C12,C12)","v":"0"},null,null,null,null,null,null,"OK"]
[{"$f":"C13&COUNTIF($C$1:C13,C13)","v":"0"},null,null,null,null,null,null,"OK"]
[{"$f":"C14&COUNTIF($C$1:C14,C14)","v":"0"},null,null,null,null,null,null,"OK"]
[{"$f":"C15&COUNTIF($C$1:C15,C15)","v":"0"},null,null,null,null,null,null,"OK"]
[{"$f":"C16&COUNTIF($C$1:C16,C16)","v":"0"},null,null,null,null,null,null,"OK"]
[{"$f":"C17&COUNTIF($C$1:C17,C17)","v":"0"},null,null,null,null,null,null,"OK"]
[{"$f":"C18&COUNTIF($C$1:C18,C18)","v":"0"},null,null,null,null,null,null,"OK"]
[{"$f":"C19&COUNTIF($C$1:C19,C19)","v":"0"},null,null,null,null,null,null,"OK"]
[{"$f":"C20&COUNTIF($C$1:C20,C20)","v":"0"},null,null,null,null,null,null,"OK"]
[{"$f":"C21&COUNTIF($C$1:C21,C21)","v":"0"},null,null,null,null,null,null,"OK"]
[{"$f":"C22&COUNTIF($C$1:C22,C22)","v":"0"},null,null,null,null,null,null,"OK"]
[{"$f":"C23&COUNTIF($C$1:C23,C23)","v":"0"},null,null,null,null,null,null,"OK"]
[{"$f":"C24&COUNTIF($C$1:C24,C24)","v":"0"},null,null,null,null,null,null,"OK"]
[{"$f":"C25&COUNTIF($C$1:C25,C25)","v":"0"},null,null,null,null,null,null,"OK"]
[{"$f":"C26&COUNTIF($C$1:C26,C26)","v":"0"},null,null,null,null,null,null,"OK"]
[{"$f":"C27&COUNTIF($C$1:C27,C27)","v":"0"},null,null,null,null,null,null,"OK"]
[{"$f":"C28&COUNTIF($C$1:C28,C28)","v":"0"},null,null,null,null,null,null,"OK"]
[{"$f":"C29&COUNTIF($C$1:C29,C29)","v":"0"},null,null,null,null,null,null,"OK"]
[{"$f":"C30&COUNTIF($C$1:C30,C30)","v":"0"},null,null,null,null,null,null,"OK"]
[{"$f":"C31&COUNTIF($C$1:C31,C31)","v":"0"},null,null,null,null,null,null,"OK"]
[{"$f":"C32&COUNTIF($C$1:C32,C32)","v":"0"},null,null,null,null,null,null,"OK"]
[{"$f":"C33&COUNTIF($C$1:C33,C33)","v":"0"},null,null,null,null,null,null,"OK"]
[{"$f":"C34&COUNTIF($C$1:C34,C34)","v":"0"},null,null,null,null,null,null,"OK"]
[{"$f":"C35&COUNTIF($C$1:C35,C35)","v":"0"},null,null,null,null,null,null,"OK"]
[{"$f":"C36&COUNTIF($C$1:C36,C36)","v":"0"},null,null,null,null,null,null,"OK"]
[{"$f":"C37&COUNTIF($C$1:C37,C37)","v":"0"},null,null,null,null,null,null,"OK"]
[{"$f":"C38&COUNTIF($C$1:C38,C38)","v":"0"},null,null,null,null,null,null,{"$f":"IF(OR(SUMIF(C:C,C38,G:G)=100,SUMIF(C:C,C38,G:G)=0),\"OK\",\"NG\")","v":"OK"}]
[{"$f":"C39&COUNTIF($C$1:C39,C39)","v":"0"},null,null,null,null,null,null,"OK"]
[{"$f":"C40&COUNTIF($C$1:C40,C40)","v":"0"},null,null,null,null,null,null,"OK"]
[{"$f":"C41&COUNTIF($C$1:C41,C41)","v":"0"},null,null,null,null,null,null,"OK"]
[{"$f":"C42&COUNTIF($C$1:C42,C42)","v":"0"},null,null,null,null,null,null,"OK"]
[{"$f":"C43&COUNTIF($C$1:C43,C43)","v":"0"},null,null,null,null,null,null,"OK"]
[{"$f":"C44&COUNTIF($C$1:C44,C44)","v":"0"},null,null,null,null,null,null,"OK"]
[{"$f":"C45&COUNTIF($C$1:C45,C45)","v":"0"},null,null,null,null,null,null,"OK"]
[{"$f":"C46&COUNTIF($C$1:C46,C46)","v":"0"},null,null,null,null,null,null,"OK"]
[{"$f":"C47&COUNTIF($C$1:C47,C47)","v":"0"},null,null,null,null,null,null,"OK"]
[{"$f":"C48&COUNTIF($C$1:C48,C48)","v":"0"},null,null,null,null,null,null,"OK"]
[{"$f":"C49&COUNTIF($C$1:C49,C49)","v":"0"},null,null,null,null,null,null,"OK"]
[{"$f":"C50&COUNTIF($C$1:C50,C50)","v":"0"},null,null,null,null,null,null,"OK"]
[{"$f":"C51&COUNTIF($C$1:C51,C51)","v":"0"},null,null,null,null,null,null,"OK"]
[{"$f":"C52&COUNTIF($C$1:C52,C52)","v":"0"},null,null,null,null,null,null,"OK"]
[{"$f":"C53&COUNTIF($C$1:C53,C53)","v":"0"},null,null,null,null,null,null,"OK"]
[{"$f":"C54&COUNTIF($C$1:C54,C54)","v":"0"},null,null,null,null,null,null,"OK"]
[{"$f":"C55&COUNTIF($C$1:C55,C55)","v":"0"},null,null,null,null,null,null,"OK"]
[{"$f":"C56&COUNTIF($C$1:C56,C56)","v":"0"},null,null,null,null,null,null,"OK"]
[{"$f":"C57&COUNTIF($C$1:C57,C57)","v":"0"},null,null,null,null,null,null,"OK"]
[{"$f":"C58&COUNTIF($C$1:C58,C58)","v":"0"},null,null,null,null,null,null,"OK"]
[{"$f":"C59&COUNTIF($C$1:C59,C59)","v":"0"},null,null,null,null,null,null,"OK"]
[{"$f":"C60&COUNTIF($C$1:C60,C60)","v":"0"},null,null,null,null,null,null,"OK"]
[{"$f":"C61&COUNTIF($C$1:C61,C61)","v":"0"},null,null,null,null,null,null,"OK"]
[{"$f":"C62&COUNTIF($C$1:C62,C62)","v":"0"},null,null,null,null,null,null,"OK"]
[{"$f":"C63&COUNTIF($C$1:C63,C63)","v":"0"},null,null,null,null,null,null,"OK"]
[{"$f":"C64&COUNTIF($C$1:C64,C64)","v":"0"},null,null,null,null,null,null,"OK"]
[{"$f":"C65&COUNTIF($C$1:C65,C65)","v":"0"},null,null,null,null,null,null,"OK"]
[{"$f":"C66&COUNTIF($C$1:C66,C66)","v":"0"},null,null,null,null,null,null,"OK"]
[{"$f":"C67&COUNTIF($C$1:C67,C67)","v":"0"},null,null,null,null,null,null,"OK"]
[{"$f":"C68&COUNTIF($C$1:C68,C68)","v":"0"},null,null,null,null,null,null,"OK"]
[{"$f":"C69&COUNTIF($C$1:C69,C69)","v":"0"},null,null,null,null,null,null,"OK"]
[{"$f":"C70&COUNTIF($C$1:C70,C70)","v":"0"},null,null,null,null,null,null,{"$f":"IF(OR(SUMIF(C:C,C70,G:G)=100,SUMIF(C:C,C70,G:G)=0),\"OK\",\"NG\")","v":"OK"}]
[{"$f":"C71&COUNTIF($C$1:C71,C71)","v":"0"},null,null,null,null,null,null,"OK"]
[{"$f":"C72&COUNTIF($C$1:C72,C72)","v":"0"},null,null,null,null,null,null,"OK"]
[{"$f":"C73&COUNTIF($C$1:C73,C73)","v":"0"},null,null,null,null,null,null,"OK"]
[{"$f":"C74&COUNTIF($C$1:C74,C74)","v":"0"},null,null,null,null,null,null,"OK"]
[{"$f":"C75&COUNTIF($C$1:C75,C75)","v":"0"},null,null,null,null,null,null,"OK"]
[{"$f":"C76&COUNTIF($C$1:C76,C76)","v":"0"},null,null,null,null,null,null,"OK"]
[{"$f":"C77&COUNTIF($C$1:C77,C77)","v":"0"},null,null,null,null,null,null,"OK"]
[{"$f":"C78&COUNTIF($C$1:C78,C78)","v":"0"},null,null,null,null,null,null,"OK"]
[{"$f":"C79&COUNTIF($C$1:C79,C79)","v":"0"},null,null,null,null,null,null,"OK"]
[{"$f":"C80&COUNTIF($C$1:C80,C80)","v":"0"},null,null,null,null,null,null,"OK"]
[{"$f":"C81&COUNTIF($C$1:C81,C81)","v":"0"},null,null,null,null,null,null,"OK"]
[{"$f":"C82&COUNTIF($C$1:C82,C82)","v":"0"},null,null,null,null,null,null,"OK"]
[{"$f":"C83&COUNTIF($C$1:C83,C83)","v":"0"},null,null,null,null,null,null,"OK"]
[{"$f":"C84&COUNTIF($C$1:C84,C84)","v":"0"},null,null,null,null,null,null,"OK"]
[{"$f":"C85&COUNTIF($C$1:C85,C85)","v":"0"},null,null,null,null,null,null,"OK"]
[{"$f":"C86&COUNTIF($C$1:C86,C86)","v":"0"},null,null,null,null,null,null,"OK"]
[{"$f":"C87&COUNTIF($C$1:C87,C87)","v":"0"},null,null,null,null,null,null,"OK"]
[{"$f":"C88&COUNTIF($C$1:C88,C88)","v":"0"},null,null,null,null,null,null,"OK"]
[{"$f":"C89&COUNTIF($C$1:C89,C89)","v":"0"},null,null,null,null,null,null,"OK"]
[{"$f":"C90&COUNTIF($C$1:C90,C90)","v":"0"},null,null,null,null,null,null,"OK"]
[{"$f":"C91&COUNTIF($C$1:C91,C91)","v":"0"},null,null,null,null,null,null,"OK"]
[{"$f":"C92&COUNTIF($C$1:C92,C92)","v":"0"},null,null,null,null,null,null,"OK"]
[{"$f":"C93&COUNTIF($C$1:C93,C93)","v":"0"},null,null,null,null,null,null,"OK"]
[{"$f":"C94&COUNTIF($C$1:C94,C94)","v":"0"},null,null,null,null,null,null,"OK"]
[{"$f":"C95&COUNTIF($C$1:C95,C95)","v":"0"},null,null,null,null,null,null,"OK"]
[{"$f":"C96&COUNTIF($C$1:C96,C96)","v":"0"},null,null,null,null,null,null,"OK"]
[{"$f":"C97&COUNTIF($C$1:C97,C97)","v":"0"},null,null,null,null,null,null,"OK"]
[{"$f":"C98&COUNTIF($C$1:C98,C98)","v":"0"},null,null,null,null,null,null,"OK"]
[{"$f":"C99&COUNTIF($C$1:C99,C99)","v":"0"},null,null,null,null,null,null,"OK"]
[{"$f":"C100&COUNTIF($C$1:C100,C100)","v":"0"},null,null,null,null,null,null,"OK"]
[{"$f":"C101&COUNTIF($C$1:C101,C101)","v":"0"},null,null,null,null,null,null,"OK"]
[{"$f":"C102&COUNTIF($C$1:C102,C102)","v":"0"},null,null,null,null,null,null,{"$f":"IF(OR(SUMIF(C:C,C102,G:G)=100,SUMIF(C:C,C102,G:G)=0),\"OK\",\"NG\")","v":"OK"}]
[{"$f":"C103&COUNTIF($C$1:C103,C103)","v":"0"},null,null,null,null,null,null,"OK"]
[{"$f":"C104&COUNTIF($C$1:C104,C104)","v":"0"},null,null,null,null,null,null,"OK"]
[{"$f":"C105&COUNTIF($C$1:C105,C105)","v":"0"},null,null,null,null,null,null,"OK"]
[{"$f":"C106&COUNTIF($C$1:C106,C106)","v":"0"},null,null,null,null,null,null,"OK"]
[{"$f":"C107&COUNTIF($C$1:C107,C107)","v":"0"},null,null,null,null,null,null,"OK"]
[{"$f":"C108&COUNTIF($C$1:C108,C108)","v":"0"},null,null,null,null,null,null,"OK"]
[{"$f":"C109&COUNTIF($C$1:C109,C109)","v":"0"},null,null,null,null,null,null,"OK"]
[{"$f":"C110&COUNTIF($C$1:C110,C110)","v":"0"},null,null,null,null,null,null,"OK"]

{"sheet":"作成元データ","index":2,"n_rows":1152,"n_cols":20,"rows_kept":1152,"cut":false,"hidden":false,"merged":[]}
[null,null,"※ 配賦仕訳を作成すると、「配賦仕訳」シートの内容は上書きされます"]
["配賦ルール名称","伝票番号","取引日","借方勘定科目","借方金額","借方税区分","借方品目","借方部門","借方メモ","貸方勘定科目","貸方金額","貸方税区分","貸方品目","貸方部門","貸方メモ","取引先","摘要","決算整理仕訳","借方取引先","貸方取引先"]
[]
[]
[]
[]
[]
[]
[]
[]
[]
[]
[]
[]
[]
[]
[]
[]
[]
[]
[]
[]
[]
[]
[]
[]
[]
[]
[]
[]
[]
[]
[]
[]
[]
[]
[]
[]
[]
[]
[]
[]
[]
[]
[]
[]
[]
[]
[]
[]
[]
[]
[]
[]
[]
[]
[]
[]
[]
[]
[]
[]
[]
[]
[]
[]
[]
[]
[]
[]
[]
[]
[]
[]
[]
[]
[]
[]
[]
[]
[]
[]
[]
[]
[]
[]
[]
[]
[]
[]
[]
[]
[]
[]
[]
[]
[]
[]
[]
[]
[]
[]
[]
[]
[]
[]
[]
[]
[]
[]
[]
[]
[]
[]
[]
[]
[]
[]
[]
[]
[]
[]
[]
[]
[]
[]
[]
[]
[]
[]
[]
[]
[]
[]
[]
[]
[]
[]
[]
[]
[]
[]
[]
[]
[]
[]
[]
[]
[]
[]
[]
[]
[]
[]
[]
[]
[]
[]
[]
[]
[]
[]
[]
[]
[]
[]
[]
[]
[]
[]
[]
[]
[]
[]
[]
[]
[]
[]
[]
[]
[]
[]
[]
[]
[]
[]
[]
[]
[]
[]
[]
[]
[]
[]
[]
[]
[]
[]
[]
[]
[]
[]
[]
[]
[]
[]
[]
[]
[]
[]
[]
[]
[]
[]
[]
[]
[]
[]
[]
[]
[]
[]
[]
[]
[]
[]
[]
[]
[]
[]
[]
[]
[]
[]
[]
[]
[]
[]
[]
[]
[]
[]
[]
[]
[]
[]
[]
[]
[]
[]
[]
[]
[]
[]
[]
[]
[]
[]
[]
[]
[]
[]
[]
[]
[]
[]
[]
[]
[]
[]
[]
[]
[]
[]
[]
[]
[]
[]
[]
[]
[]
[]
[]
[]
[]
[]
[]
[]
[]
[]
[]
[]
[]
[]
[]
[]
[]
[]
[]
[]
[]
[]
[]
[]
[]
[]
[]
[]
[]
[]
[]
[]
[]
[]
[]
[]
[]
[]
[]
[]
[]
[]
[]
[]
[]
[]
[]
[]
[]
[]
[]
[]
[]
[]
[]
[]
[]
[]
[]
[]
[]
[]
[]
[]
[]
[]
[]
[]
[]
[]
[]
[]
[]
[]
[]
[]
[]
[]
[]
[]
[]
[]
[]
[]
[]
[]
[]
[]
[]
[]
[]
[]
[]
[]
[]
[]
[]
[]
[]
[]
[]
[]
[]
[]
[]
[]
[]
[]
[]
[]
[]
[]
[]
[]
[]
[]
[]
[]
[]
[]
[]
[]
[null,null,null,null,null,null,null,null,null,null,null,null,null,null,null,null,null,null,"takagi税理士事務所","takagi税理士事務所"]
[]
[]
[]
[]
[]
[]
[]
[]
[]
[]
[]
[]
[]
[]
[]
[]
[]
[]
[]
[]
[]
[]
[]
[]
[]
[]
[]
[]
[]
[]
[]
[]
[]
[]
[]
[]
[]
[]
[]
[]
[]
[]
[]
[]
[]
[]
[]
[]
[]
[]
[]
[]
[]
[]
[]
[]
[]
[]
[]
[]
[]
[]
[]
[null,null,null,null,null,null,null,null,null,null,null,null,null,null,null,null,null,null,"BAA","BAA"]
[null,null,null,null,null,null,null,null,null,null,null,null,null,null,null,null,null,null,"ASA","ASA"]
[]
[]
[]
[]
[]
[]
[]
[]
[]
[]
[]
[]
[]
[]
[]
[]
[]
[]
[]
[]
[]
[]
[null,null,null,null,null,null,null,null,null,null,null,null,null,null,null,null,null,null,"ACX","ACX"]
[null,null,null,null,null,null,null,null,null,null,null,null,null,null,null,null,null,null,"ALL","ALL"]
[]
[]
[]
[]
[]
[]
[]
[]
[]
[]
[]
[]
[]
[]
[]
[]
[]
[]
[]
[]
[]
[]
[]
[]
[]
[]
[]
[]
[]
[]
[]
[]
[]
[]
[]
[]
[]
[]
[]
[]
[]
[]
[]
[]
[]
[]
[]
[]
[]
[]
[]
[]
[]
[]
[]
[]
[]
[]
[]
[]
[]
[]
[]
[]
[]
[]
[]
[]
[]
[]
[]
[]
[]
[]
[]
[null,null,null,null,null,null,null,null,null,null,null,null,null,null,null,null,null,null,"中島製作所","中島製作所"]
[null,null,null,null,null,null,null,null,null,null,null,null,null,null,null,null,null,null,"中島製作所","中島製作所"]
[]
[null,null,null,null,null,null,null,null,null,null,null,null,null,null,null,null,null,null,"ABC商店"]
[]
[]
[null,null,null,null,null,null,null,null,null,null,null,null,null,null,null,null,null,null,"ABC商店","ABC商店"]
[]
[]
[]
[]
[]
[]
[]
[]
[]
[]
[]
[]
[]
[]
[]
[]
[null,null,null,null,null,null,null,null,null,null,null,null,null,null,null,null,null,null,"スタジオ井上","スタジオ井上"]
[null,null,null,null,null,null,null,null,null,null,null,null,null,null,null,null,null,null,"スタジオ井上"]
[]
[]
[]
[]
[]
[]
[]
[null,null,null,null,null,null,null,null,null,null,null,null,null,null,null,null,null,null,"freee株式会社","freee株式会社"]
[null,null,null,null,null,null,null,null,null,null,null,null,null,null,null,null,null,null,"freee株式会社"]
[]
[]
[]
[]
[]
[]
[]
[]
[]
[]
[]
[]
[]
[]
[]
[]
[]
[]
[]
[]
[]
[]
[]
[]
[]
[]
[]
[]
[]
[]
[]
[]
[]
[]
[]
[]
[]
[]
[]
[]
[]
[]
[]
[]
[]
[]
[]
[]
[]
[]
[]
[]
[]
[]
[]
[]
[]
[]
[]
[null,null,null,null,null,null,null,null,null,null,null,null,null,null,null,null,null,null,"freee株式会社","freee株式会社"]
[null,null,null,null,null,null,null,null,null,null,null,null,null,null,null,null,null,null,"中村事務所","中村事務所"]
[]
[]
[]
[]
[]
[]
[]
[]
[]
[]
[]
[]
[]
[]
[]
[]
[]
[]
[]
[]
[]
[]
[]
[]
[]
[]
[]
[]
[null,null,null,null,null,null,null,null,null,null,null,null,null,null,null,null,null,null,"スタジオ井上","スタジオ井上"]
[null,null,null,null,null,null,null,null,null,null,null,null,null,null,null,null,null,null,"スタジオ井上"]
[]
[]
[]
[]
[]
[]
[]
[null,null,null,null,null,null,null,null,null,null,null,null,null,null,null,null,null,null,"freee株式会社","freee株式会社"]
[null,null,null,null,null,null,null,null,null,null,null,null,null,null,null,null,null,null,"freee株式会社"]
[]
[]
[]
[]
[null,null,null,null,null,null,null,null,null,null,null,null,null,null,null,null,null,null,"井上事務所","井上事務所"]
[null,null,null,null,null,null,null,null,null,null,null,null,null,null,null,null,null,null,"井上事務所","井上事務所"]
[]
[null,null,null,null,null,null,null,null,null,null,null,null,null,null,null,null,null,null,"歩理伊有限公司","歩理伊有限公司"]
[]
[]
[]
[]
[]
[]
[]
[null,null,null,null,null,null,null,null,null,null,null,null,null,null,null,null,null,null,"freee trading Pty Ltd.","freee trading Pty Ltd."]
[]
[]
[]
[]
[]
[]
[]
[]
[]
[]
[]
[]
[]
[]
[]
[]
[]
[]
[]
[]
[]
[]
[]
[]
[]
[]
[]
[]
[]
[]
[]
[]
[]
[]
[]
[]
[]
[]
[]
[]
[]
[]
[]
[]
[]
[]
[]
[]
[]
[]
[]
[]
[]
[]
[]
[]
[]
[]
[]
[]
[]
[]
[]
[]
[]
[]
[]
[null,null,null,null,null,null,null,null,null,null,null,null,null,null,null,null,null,null,"ALL","ALL"]
[null,null,null,null,null,null,null,null,null,null,null,null,null,null,null,null,null,null,"中村事務所","中村事務所"]
[]
[]
[]
[]
[]
[]
[]
[]
[]
[]
[]
[]
[]
[]
[]
[]
[]
[]
[]
[]
[]
[]
[]
[]
[]
[]
[]
[]
[]
[]
[]
[]
[]
[]
[]
[]
[]
[]
[]
[]
[]
[]
[]
[]
[]
[]
[null,null,null,null,null,null,null,null,null,null,null,null,null,null,null,null,null,null,"首都圏リース㈱","首都圏リース㈱"]
[null,null,null,null,null,null,null,null,null,null,null,null,null,null,null,null,null,null,"首都圏リース㈱","首都圏リース㈱"]
[null,null,null,null,null,null,null,null,null,null,null,null,null,null,null,null,null,null,"首都圏リース㈱","首都圏リース㈱"]
[null,null,null,null,null,null,null,null,null,null,null,null,null,null,null,null,null,null,"首都圏リース㈱","首都圏リース㈱"]
[null,null,null,null,null,null,null,null,null,null,null,null,null,null,null,null,null,null,"首都圏リース㈱","首都圏リース㈱"]
[null,null,null,null,null,null,null,null,null,null,null,null,null,null,null,null,null,null,"首都圏リース㈱","首都圏リース㈱"]
[null,null,null,null,null,null,null,null,null,null,null,null,null,null,null,null,null,null,"首都圏リース㈱","首都圏リース㈱"]
[null,null,null,null,null,null,null,null,null,null,null,null,null,null,null,null,null,null,"首都圏リース㈱","首都圏リース㈱"]
[null,null,null,null,null,null,null,null,null,null,null,null,null,null,null,null,null,null,"首都圏リース㈱","首都圏リース㈱"]
[null,null,null,null,null,null,null,null,null,null,null,null,null,null,null,null,null,null,"首都圏リース㈱","首都圏リース㈱"]
[null,null,null,null,null,null,null,null,null,null,null,null,null,null,null,null,null,null,"首都圏リース㈱","首都圏リース㈱"]
[null,null,null,null,null,null,null,null,null,null,null,null,null,null,null,null,null,null,"首都圏リース㈱","首都圏リース㈱"]
[null,null,null,null,null,null,null,null,null,null,null,null,null,null,null,null,null,null,"首都圏リース㈱","首都圏リース㈱"]
[null,null,null,null,null,null,null,null,null,null,null,null,null,null,null,null,null,null,"首都圏リース㈱","首都圏リース㈱"]
[null,null,null,null,null,null,null,null,null,null,null,null,null,null,null,null,null,null,"首都圏リース㈱","首都圏リース㈱"]
[null,null,null,null,null,null,null,null,null,null,null,null,null,null,null,null,null,null,"首都圏リース㈱","首都圏リース㈱"]
[null,null,null,null,null,null,null,null,null,null,null,null,null,null,null,null,null,null,"首都圏リース㈱","首都圏リース㈱"]
[null,null,null,null,null,null,null,null,null,null,null,null,null,null,null,null,null,null,"首都圏リース㈱","首都圏リース㈱"]
[null,null,null,null,null,null,null,null,null,null,null,null,null,null,null,null,null,null,"首都圏リース㈱","首都圏リース㈱"]
[null,null,null,null,null,null,null,null,null,null,null,null,null,null,null,null,null,null,"首都圏リース㈱","首都圏リース㈱"]
[null,null,null,null,null,null,null,null,null,null,null,null,null,null,null,null,null,null,"首都圏リース㈱","首都圏リース㈱"]
[null,null,null,null,null,null,null,null,null,null,null,null,null,null,null,null,null,null,"首都圏リース㈱","首都圏リース㈱"]
[null,null,null,null,null,null,null,null,null,null,null,null,null,null,null,null,null,null,"首都圏リース㈱","首都圏リース㈱"]
[null,null,null,null,null,null,null,null,null,null,null,null,null,null,null,null,null,null,"首都圏リース㈱","首都圏リース㈱"]
[null,null,null,null,null,null,null,null,null,null,null,null,null,null,null,null,null,null,"首都圏リース㈱","首都圏リース㈱"]
[null,null,null,null,null,null,null,null,null,null,null,null,null,null,null,null,null,null,"首都圏リース㈱","首都圏リース㈱"]
[null,null,null,null,null,null,null,null,null,null,null,null,null,null,null,null,null,null,"首都圏リース㈱","首都圏リース㈱"]
[null,null,null,null,null,null,null,null,null,null,null,null,null,null,null,null,null,null,"首都圏リース㈱","首都圏リース㈱"]
[null,null,null,null,null,null,null,null,null,null,null,null,null,null,null,null,null,null,"首都圏リース㈱","首都圏リース㈱"]
[null,null,null,null,null,null,null,null,null,null,null,null,null,null,null,null,null,null,"首都圏リース㈱","首都圏リース㈱"]
[null,null,null,null,null,null,null,null,null,null,null,null,null,null,null,null,null,null,"首都圏リース㈱","首都圏リース㈱"]
[null,null,null,null,null,null,null,null,null,null,null,null,null,null,null,null,null,null,"首都圏リース㈱","首都圏リース㈱"]
[null,null,null,null,null,null,null,null,null,null,null,null,null,null,null,null,null,null,"首都圏リース㈱","首都圏リース㈱"]
[null,null,null,null,null,null,null,null,null,null,null,null,null,null,null,null,null,null,"首都圏リース㈱","首都圏リース㈱"]
[null,null,null,null,null,null,null,null,null,null,null,null,null,null,null,null,null,null,"首都圏リース㈱","首都圏リース㈱"]
[null,null,null,null,null,null,null,null,null,null,null,null,null,null,null,null,null,null,"首都圏リース㈱","首都圏リース㈱"]
[null,null,null,null,null,null,null,null,null,null,null,null,null,null,null,null,null,null,"首都圏リース㈱","首都圏リース㈱"]
[null,null,null,null,null,null,null,null,null,null,null,null,null,null,null,null,null,null,"首都圏リース㈱","首都圏リース㈱"]
[null,null,null,null,null,null,null,null,null,null,null,null,null,null,null,null,null,null,"首都圏リース㈱","首都圏リース㈱"]
[null,null,null,null,null,null,null,null,null,null,null,null,null,null,null,null,null,null,"首都圏リース㈱","首都圏リース㈱"]
[null,null,null,null,null,null,null,null,null,null,null,null,null,null,null,null,null,null,"首都圏リース㈱","首都圏リース㈱"]
[null,null,null,null,null,null,null,null,null,null,null,null,null,null,null,null,null,null,"首都圏リース㈱","首都圏リース㈱"]
[null,null,null,null,null,null,null,null,null,null,null,null,null,null,null,null,null,null,"首都圏リース㈱","首都圏リース㈱"]
[null,null,null,null,null,null,null,null,null,null,null,null,null,null,null,null,null,null,"首都圏リース㈱","首都圏リース㈱"]
[null,null,null,null,null,null,null,null,null,null,null,null,null,null,null,null,null,null,"首都圏リース㈱","首都圏リース㈱"]
[null,null,null,null,null,null,null,null,null,null,null,null,null,null,null,null,null,null,"首都圏リース㈱","首都圏リース㈱"]
[null,null,null,null,null,null,null,null,null,null,null,null,null,null,null,null,null,null,"首都圏リース㈱","首都圏リース㈱"]
[null,null,null,null,null,null,null,null,null,null,null,null,null,null,null,null,null,null,"首都圏リース㈱","首都圏リース㈱"]
[null,null,null,null,null,null,null,null,null,null,null,null,null,null,null,null,null,null,"首都圏リース㈱","首都圏リース㈱"]
[null,null,null,null,null,null,null,null,null,null,null,null,null,null,null,null,null,null,"首都圏リース㈱","首都圏リース㈱"]
[null,null,null,null,null,null,null,null,null,null,null,null,null,null,null,null,null,null,"首都圏リース㈱","首都圏リース㈱"]
[null,null,null,null,null,null,null,null,null,null,null,null,null,null,null,null,null,null,"首都圏リース㈱","首都圏リース㈱"]
[null,null,null,null,null,null,null,null,null,null,null,null,null,null,null,null,null,null,"首都圏リース㈱","首都圏リース㈱"]
[null,null,null,null,null,null,null,null,null,null,null,null,null,null,null,null,null,null,"首都圏リース㈱","首都圏リース㈱"]
[null,null,null,null,null,null,null,null,null,null,null,null,null,null,null,null,null,null,"首都圏リース㈱","首都圏リース㈱"]
[null,null,null,null,null,null,null,null,null,null,null,null,null,null,null,null,null,null,"首都圏リース㈱","首都圏リース㈱"]
[null,null,null,null,null,null,null,null,null,null,null,null,null,null,null,null,null,null,"首都圏リース㈱","首都圏リース㈱"]
[null,null,null,null,null,null,null,null,null,null,null,null,null,null,null,null,null,null,"首都圏リース㈱","首都圏リース㈱"]
[null,null,null,null,null,null,null,null,null,null,null,null,null,null,null,null,null,null,"首都圏リース㈱","首都圏リース㈱"]
[null,null,null,null,null,null,null,null,null,null,null,null,null,null,null,null,null,null,"首都圏リース㈱","首都圏リース㈱"]
[null,null,null,null,null,null,null,null,null,null,null,null,null,null,null,null,null,null,"首都圏リース㈱","首都圏リース㈱"]
[null,null,null,null,null,null,null,null,null,null,null,null,null,null,null,null,null,null,"首都圏リース㈱","首都圏リース㈱"]
[null,null,null,null,null,null,null,null,null,null,null,null,null,null,null,null,null,null,"首都圏リース㈱","首都圏リース㈱"]
[null,null,null,null,null,null,null,null,null,null,null,null,null,null,null,null,null,null,"首都圏リース㈱","首都圏リース㈱"]
[null,null,null,null,null,null,null,null,null,null,null,null,null,null,null,null,null,null,"首都圏リース㈱","首都圏リース㈱"]
[null,null,null,null,null,null,null,null,null,null,null,null,null,null,null,null,null,null,"首都圏リース㈱","首都圏リース㈱"]
[null,null,null,null,null,null,null,null,null,null,null,null,null,null,null,null,null,null,"首都圏リース㈱","首都圏リース㈱"]
[null,null,null,null,null,null,null,null,null,null,null,null,null,null,null,null,null,null,"首都圏リース㈱","首都圏リース㈱"]
[null,null,null,null,null,null,null,null,null,null,null,null,null,null,null,null,null,null,"首都圏リース㈱","首都圏リース㈱"]
[null,null,null,null,null,null,null,null,null,null,null,null,null,null,null,null,null,null,"◯◯リース","◯◯リース"]
[]
[]
[]
[]
[]
[]
[null,null,null,null,null,null,null,null,null,null,null,null,null,null,null,null,null,null,"XX通運","XX通運"]
[]
[]
[null,null,null,null,null,null,null,null,null,null,null,null,null,null,null,null,null,null,"XX通運","XX通運"]
[]
[null,null,null,null,null,null,null,null,null,null,null,null,null,null,null,null,null,null,"XX通運","XX通運"]
[]
[]
[]
[]
[null,null,null,null,null,null,null,null,null,null,null,null,null,null,null,null,null,null,"首都圏リース㈱","首都圏リース㈱"]
[null,null,null,null,null,null,null,null,null,null,null,null,null,null,null,null,null,null,"首都圏リース㈱","首都圏リース㈱"]
[null,null,null,null,null,null,null,null,null,null,null,null,null,null,null,null,null,null,"首都圏リース㈱","首都圏リース㈱"]
[null,null,null,null,null,null,null,null,null,null,null,null,null,null,null,null,null,null,"首都圏リース㈱","首都圏リース㈱"]
[null,null,null,null,null,null,null,null,null,null,null,null,null,null,null,null,null,null,"首都圏リース㈱","首都圏リース㈱"]
[null,null,null,null,null,null,null,null,null,null,null,null,null,null,null,null,null,null,"首都圏リース㈱","首都圏リース㈱"]
[null,null,null,null,null,null,null,null,null,null,null,null,null,null,null,null,null,null,"首都圏リース㈱","首都圏リース㈱"]
[null,null,null,null,null,null,null,null,null,null,null,null,null,null,null,null,null,null,"首都圏リース㈱","首都圏リース㈱"]
[null,null,null,null,null,null,null,null,null,null,null,null,null,null,null,null,null,null,"首都圏リース㈱","首都圏リース㈱"]
[null,null,null,null,null,null,null,null,null,null,null,null,null,null,null,null,null,null,"首都圏リース㈱","首都圏リース㈱"]
[null,null,null,null,null,null,null,null,null,null,null,null,null,null,null,null,null,null,"首都圏リース㈱","首都圏リース㈱"]
[null,null,null,null,null,null,null,null,null,null,null,null,null,null,null,null,null,null,"首都圏リース㈱","首都圏リース㈱"]
[null,null,null,null,null,null,null,null,null,null,null,null,null,null,null,null,null,null,"首都圏リース㈱","首都圏リース㈱"]
[null,null,null,null,null,null,null,null,null,null,null,null,null,null,null,null,null,null,"首都圏リース㈱","首都圏リース㈱"]
[null,null,null,null,null,null,null,null,null,null,null,null,null,null,null,null,null,null,"首都圏リース㈱","首都圏リース㈱"]
[null,null,null,null,null,null,null,null,null,null,null,null,null,null,null,null,null,null,"首都圏リース㈱","首都圏リース㈱"]
[null,null,null,null,null,null,null,null,null,null,null,null,null,null,null,null,null,null,"首都圏リース㈱","首都圏リース㈱"]
[null,null,null,null,null,null,null,null,null,null,null,null,null,null,null,null,null,null,"首都圏リース㈱","首都圏リース㈱"]
[null,null,null,null,null,null,null,null,null,null,null,null,null,null,null,null,null,null,"首都圏リース㈱","首都圏リース㈱"]
[null,null,null,null,null,null,null,null,null,null,null,null,null,null,null,null,null,null,"首都圏リース㈱","首都圏リース㈱"]
[null,null,null,null,null,null,null,null,null,null,null,null,null,null,null,null,null,null,"首都圏リース㈱","首都圏リース㈱"]
[null,null,null,null,null,null,null,null,null,null,null,null,null,null,null,null,null,null,"首都圏リース㈱","首都圏リース㈱"]
[null,null,null,null,null,null,null,null,null,null,null,null,null,null,null,null,null,null,"首都圏リース㈱","首都圏リース㈱"]
[null,null,null,null,null,null,null,null,null,null,null,null,null,null,null,null,null,null,"首都圏リース㈱","首都圏リース㈱"]
[null,null,null,null,null,null,null,null,null,null,null,null,null,null,null,null,null,null,"首都圏リース㈱","首都圏リース㈱"]
[null,null,null,null,null,null,null,null,null,null,null,null,null,null,null,null,null,null,"首都圏リース㈱","首都圏リース㈱"]
[null,null,null,null,null,null,null,null,null,null,null,null,null,null,null,null,null,null,"首都圏リース㈱","首都圏リース㈱"]
[null,null,null,null,null,null,null,null,null,null,null,null,null,null,null,null,null,null,"首都圏リース㈱","首都圏リース㈱"]
[null,null,null,null,null,null,null,null,null,null,null,null,null,null,null,null,null,null,"首都圏リース㈱","首都圏リース㈱"]
[null,null,null,null,null,null,null,null,null,null,null,null,null,null,null,null,null,null,"首都圏リース㈱","首都圏リース㈱"]
[null,null,null,null,null,null,null,null,null,null,null,null,null,null,null,null,null,null,"首都圏リース㈱","首都圏リース㈱"]
[null,null,null,null,null,null,null,null,null,null,null,null,null,null,null,null,null,null,"首都圏リース㈱","首都圏リース㈱"]
[null,null,null,null,null,null,null,null,null,null,null,null,null,null,null,null,null,null,"首都圏リース㈱","首都圏リース㈱"]
[null,null,null,null,null,null,null,null,null,null,null,null,null,null,null,null,null,null,"首都圏リース㈱","首都圏リース㈱"]
[null,null,null,null,null,null,null,null,null,null,null,null,null,null,null,null,null,null,"首都圏リース㈱","首都圏リース㈱"]
[null,null,null,null,null,null,null,null,null,null,null,null,null,null,null,null,null,null,"首都圏リース㈱","首都圏リース㈱"]
[null,null,null,null,null,null,null,null,null,null,null,null,null,null,null,null,null,null,"首都圏リース㈱","首都圏リース㈱"]
[null,null,null,null,null,null,null,null,null,null,null,null,null,null,null,null,null,null,"首都圏リース㈱","首都圏リース㈱"]
[null,null,null,null,null,null,null,null,null,null,null,null,null,null,null,null,null,null,"首都圏リース㈱","首都圏リース㈱"]
[null,null,null,null,null,null,null,null,null,null,null,null,null,null,null,null,null,null,"首都圏リース㈱","首都圏リース㈱"]
[null,null,null,null,null,null,null,null,null,null,null,null,null,null,null,null,null,null,"首都圏リース㈱","首都圏リース㈱"]
[null,null,null,null,null,null,null,null,null,null,null,null,null,null,null,null,null,null,"首都圏リース㈱","首都圏リース㈱"]
[null,null,null,null,null,null,null,null,null,null,null,null,null,null,null,null,null,null,"首都圏リース㈱","首都圏リース㈱"]
[null,null,null,null,null,null,null,null,null,null,null,null,null,null,null,null,null,null,"首都圏リース㈱","首都圏リース㈱"]
[null,null,null,null,null,null,null,null,null,null,null,null,null,null,null,null,null,null,"首都圏リース㈱","首都圏リース㈱"]
[null,null,null,null,null,null,null,null,null,null,null,null,null,null,null,null,null,null,"首都圏リース㈱","首都圏リース㈱"]
[null,null,null,null,null,null,null,null,null,null,null,null,null,null,null,null,null,null,"首都圏リース㈱","首都圏リース㈱"]
[null,null,null,null,null,null,null,null,null,null,null,null,null,null,null,null,null,null,"首都圏リース㈱","首都圏リース㈱"]
[null,null,null,null,null,null,null,null,null,null,null,null,null,null,null,null,null,null,"首都圏リース㈱","首都圏リース㈱"]
[null,null,null,null,null,null,null,null,null,null,null,null,null,null,null,null,null,null,"首都圏リース㈱","首都圏リース㈱"]
[null,null,null,null,null,null,null,null,null,null,null,null,null,null,null,null,null,null,"首都圏リース㈱","首都圏リース㈱"]
[null,null,null,null,null,null,null,null,null,null,null,null,null,null,null,null,null,null,"首都圏リース㈱","首都圏リース㈱"]
[null,null,null,null,null,null,null,null,null,null,null,null,null,null,null,null,null,null,"首都圏リース㈱","首都圏リース㈱"]
[null,null,null,null,null,null,null,null,null,null,null,null,null,null,null,null,null,null,"首都圏リース㈱","首都圏リース㈱"]
[null,null,null,null,null,null,null,null,null,null,null,null,null,null,null,null,null,null,"首都圏リース㈱","首都圏リース㈱"]
[null,null,null,null,null,null,null,null,null,null,null,null,null,null,null,null,null,null,"首都圏リース㈱","首都圏リース㈱"]
[null,null,null,null,null,null,null,null,null,null,null,null,null,null,null,null,null,null,"首都圏リース㈱","首都圏リース㈱"]
[null,null,null,null,null,null,null,null,null,null,null,null,null,null,null,null,null,null,"首都圏リース㈱","首都圏リース㈱"]
[null,null,null,null,null,null,null,null,null,null,null,null,null,null,null,null,null,null,"首都圏リース㈱","首都圏リース㈱"]
[null,null,null,null,null,null,null,null,null,null,null,null,null,null,null,null,null,null,"首都圏リース㈱","首都圏リース㈱"]
[null,null,null,null,null,null,null,null,null,null,null,null,null,null,null,null,null,null,"首都圏リース㈱","首都圏リース㈱"]
[null,null,null,null,null,null,null,null,null,null,null,null,null,null,null,null,null,null,"首都圏リース㈱","首都圏リース㈱"]
[null,null,null,null,null,null,null,null,null,null,null,null,null,null,null,null,null,null,"首都圏リース㈱","首都圏リース㈱"]
[null,null,null,null,null,null,null,null,null,null,null,null,null,null,null,null,null,null,"首都圏リース㈱","首都圏リース㈱"]
[null,null,null,null,null,null,null,null,null,null,null,null,null,null,null,null,null,null,"首都圏リース㈱","首都圏リース㈱"]
[null,null,null,null,null,null,null,null,null,null,null,null,null,null,null,null,null,null,"首都圏リース㈱","首都圏リース㈱"]
[null,null,null,null,null,null,null,null,null,null,null,null,null,null,null,null,null,null,"首都圏リース㈱","首都圏リース㈱"]
[null,null,null,null,null,null,null,null,null,null,null,null,null,null,null,null,null,null,"首都圏リース㈱","首都圏リース㈱"]
[null,null,null,null,null,null,null,null,null,null,null,null,null,null,null,null,null,null,"首都圏リース㈱","首都圏リース㈱"]
[]
[]
[]
[]
[]
[]
[]
[null,null,null,null,null,null,null,null,null,null,null,null,null,null,null,null,null,null,"ABC商店","ABC商店"]
[]
[]
[]
[]
[]
[]
[]
[]
[]
[]
[]
[]
[]
[]
[]
[]
[]
[]
[]
[]
[]
[]
[]
[]
[]
[]
[]
[null,null,null,null,null,null,null,null,null,null,null,null,null,null,null,null,null,null,"フリー商事","フリー商事"]
[]
[]
[]
[]
[]
[]
[]
[]
[]
[null,null,null,null,null,null,null,null,null,null,null,null,null,null,null,null,null,null,"◯◯リース","◯◯リース"]
[]
[]
[]
[]
[]
[]
[]
[]
[]
[]
[]
[null,null,null,null,null,null,null,null,null,null,null,null,null,null,null,null,null,null,"XX通運","XX通運"]
[null,null,null,null,null,null,null,null,null,null,null,null,null,null,null,null,null,null,"XX通運"]
[]
[]
[]
[]
[]
[]
[]
[]
[]
[]
[]
[]
[null,null,null,null,null,null,null,null,null,null,null,null,null,null,null,null,null,null,"大川","大川"]
[null,null,null,null,null,null,null,null,null,null,null,null,null,null,null,null,null,null,null,"大川"]
[]
[]
[null,null,null,null,null,null,null,null,null,null,null,null,null,null,null,null,null,null,"ABC商店","ABC商店"]
[null,null,null,null,null,null,null,null,null,null,null,null,null,null,null,null,null,null,"utiqua","utiqua"]
[null,null,null,null,null,null,null,null,null,null,null,null,null,null,null,null,null,null,"utiqua","utiqua"]
[null,null,null,null,null,null,null,null,null,null,null,null,null,null,null,null,null,null,"フリー商事","フリー商事"]
[null,null,null,null,null,null,null,null,null,null,null,null,null,null,null,null,null,null,"XX通運","XX通運"]
[]
[]
[]
[]
[]
[]
[]
[]
[]
[null,null,null,null,null,null,null,null,null,null,null,null,null,null,null,null,null,null,"確定申告祭り株式会社","確定申告祭り株式会社"]
[]
[]
[]
[]
[]
[]
[]
[]
[]
[]
[]
[]
[null,null,null,null,null,null,null,null,null,null,null,null,null,null,null,null,null,null,"CFO事務所","CFO事務所"]
[]
[null,null,null,null,null,null,null,null,null,null,null,null,null,null,null,null,null,null,"freee trading Pty Ltd.","freee trading Pty Ltd."]
[]
[]
[]
[]
[]
[]
[]
[]
[]
[]
[]
[]
[]
[]
[]
[]
[]
[]
[null,null,null,null,null,null,null,null,null,null,null,null,null,null,null,null,null,null,"freee商会","freee商会"]
[]
[]
[]
[]
[]
[]
[]
[]
[]
[]
[]
[]
[]
[]
[null,null,null,null,null,null,null,null,null,null,null,null,null,null,null,null,null,null,"CFO事務所","CFO事務所"]
[null,null,null,null,null,null,null,null,null,null,null,null,null,null,null,null,null,null,"CFO事務所","CFO事務所"]
[null,null,null,null,null,null,null,null,null,null,null,null,null,null,null,null,null,null,"CFO事務所"]
[null,null,null,null,null,null,null,null,null,null,null,null,null,null,null,null,null,null,"CFO事務所","CFO事務所"]
[null,null,null,null,null,null,null,null,null,null,null,null,null,null,null,null,null,null,"CFO事務所","CFO事務所"]
[]
[]
[]
[null,null,null,null,null,null,null,null,null,null,null,null,null,null,null,null,null,null,"freee商会","freee商会"]
[]
[]
[]
[]
[]
[]
[]
[]
[]
[]
[]
[]
[]
[null,null,null,null,null,null,null,null,null,null,null,null,null,null,null,null,null,null,"中島トレーディング","中島トレーディング"]
[null,null,null,null,null,null,null,null,null,null,null,null,null,null,null,null,null,null,"中島トレーディング","中島トレーディング"]
[]
[null,null,null,null,null,null,null,null,null,null,null,null,null,null,null,null,null,null,"中島トレーディング","中島トレーディング"]
[null,null,null,null,null,null,null,null,null,null,null,null,null,null,null,null,null,null,"井上事務所","井上事務所"]

{"sheet":"配賦仕訳","index":3,"n_rows":2,"n_cols":19,"rows_kept":2,"cut":false,"hidden":false,"merged":[]}
[]
["伝票番号","日付","借方勘定科目","借方金額","借方税区分","借方品目","借方部門","借方メモタグ","貸方勘定科目","貸方金額","貸方税区分","貸方品目","貸方部門","貸方メモタグ","貸借取引先","摘要","決算整理仕訳","借方取引先","貸方取引先"]